Cogmind - Beta 17 @@@ ROGUE MODE // 2026.08.06 @ 00:05:24 Player: 4R-ZE3 Result: Self-destructed Performance ------------- Evolutions (0) 0 Regions Visited (3) 600 Robots Destroyed (20) 100 Value Destroyed (470) 470 Prototype IDs (0) 0 Alien Tech Used (0) 0 Bonus (300) 300 TOTAL SCORE: 1470 Bonus ------- Registered with UFD 300 Cogmind --------- Core Integrity 52/250 Matter 268/300 Energy 250/250 System Corruption 0% Temperature Cool (0) Movement Treading (240) Ox1 Location -8/Scraptown Parts ------- > --- POWER (1) -------- Ion Engine > --- PROPULSION (2) --- Light Treads Light Treads > --- UTILITY (2) ------ High-capacity Storage Unit > --- WEAPON (2) ------- Assault Rifle Assault Rifle > --- INVENTORY (20) --- Light Treads Subdweller Monowheel Light Armor Plating Light Armor Plating Hacking Suite Subdweller Laser Subdweller Laser Subdweller Beam Cannon Assault Rifle Assault Rifle Assault Rifle Assault Rifle Assault Rifle Assault Rifle Mining Laser Hammer Peak State ------------ > --- POWER ------------ Ion Engine > --- PROPULSION ------- Light Treads Light Treads > --- UTILITY ---------- High-capacity Storage Unit Structural Scanner > --- WEAPON ----------- Medium Laser Medium Laser > --- INVENTORY -------- Ion Engine Light Treads Light Treads Light Treads Light Treads Light Armor Plating Light Armor Plating Hacking Suite Assault Rifle Assault Rifle Assault Rifle Assault Rifle Assault Rifle Assault Rifle Assault Rifle Assault Rifle Mining Laser Hammer [Rating: 9] Favorites ----------- Power Ion Engine Engine Ion Engine Propulsion Light Treads Treads Light Treads Utility High-capacity Storage Unit Device Structural Scanner Storage High-capacity Storage Unit Protection Weapon Shielding Weapon Medium Laser Energy Gun Medium Laser Ballistic Gun Assault Rifle Impact Weapon Hammer Build | -11 -10 -10 -8 ------- Run | Yrd Mat Sub Scr Slots Evolved . | . . . . Power . | . . . . Propulsion . | . . . . Utility . | . . . . Weapon . | . . . . Parts Attached 16 | 6 3 7 . Power 2 | 1 . 1 . Engine 2 | 1 . 1 . Core . | . . . . Reactor . | . . . . Propulsion 5 | 2 . 3 . Treads 5 | 2 . 3 . Leg . | . . . . Wheel . | . . . . Hover . | . . . . Flight . | . . . . Utility 4 | 1 3 . . Device 1 | . 1 . . Storage 2 | 1 1 . . Processor . | . . . . Hackware . | . . . . Protection 1 | . 1 . . Artifact . | . . . . Weapon 5 | 2 . 3 . Energy Gun 2 | 2 . . . Energy Cannon . | . . . . Ballistic Gun 2 | . . 2 . Ballistic Cannon . | . . . . Launcher . | . . . . Special Weapon . | . . . . Impact Weapon 1 | . . 1 . Slashing Weapon . | . . . . Piercing Weapon . | . . . . Special Melee Weapon . | . . . . Unidentified Prototypes . | . . . . Parts Lost 7 | . . 7 . Power 1 | . . 1 . Propulsion 3 | . . 3 . Utility 1 | . . 1 . Weapon 2 | . . 2 . Highest Loss Streak 3 | . . 3 . To Critical Strikes . | . . . . Average Backups 13 | 1 9 17 16 Power . | . 1 . . Propulsion 2 | . 2 3 2 Utility 2 | . 1 3 3 Weapon 8 | . 5 11 11 Tool/Special . | . . . . Unused Backups 14 | . . . 14 Power . | . . . . Propulsion 2 | . . . 2 Utility 2 | . . . 2 Weapon 10 | . . . 10 Tool/Special . | . . . . Average Slot Usage (%) 91 | . 97 87 85 Engine 14 | . 14 14 14 Treads 27 | . 28 27 28 Device 3 | . 3 6 . Storage 14 | . 14 14 14 Protection 3 | . 7 . . Energy Gun 14 | . 28 9 . Ballistic Gun 10 | . . 9 28 Impact Weapon 1 | . . 4 . Peak Build Rating 9 | 6 9 9 8 Average Rating 7 | 4 7 8 8 On Entrance 5 | . 6 9 8 Avg Prop Armor Cover (%) . | . . . . Naked Turns . | . . . . Heaviest Build 54 | 14 54 50 49 Greatest Support 40 | 40 40 40 40 Greatest Overweight (x) 1 | . 1 1 1 Average Overweight (x) . | . . 1 1 Largest Inventory Capacity 20 | 8 20 20 20 Average Capacity 18 | 6 18 20 20 Most Carried 19 | 2 18 19 16 Average Carried 13 | 1 9 17 16 Final Capacity 20 | 8 20 20 20 Final Carried 18 | 2 18 16 16 Class Distribution -------------------- 100% | Mutant Dominant Class ---------------- Mutant | -10/Materials Mutant | -10/Subcaves Mutant | -8/Scraptown Resources | -11 -10 -10 -8 ----------- Run | Yrd Mat Sub Scr Matter Collected 391 | 204 86 101 . Remotely . | . . . . Salvage Created 686 | . 468 218 . Parts 32 | . 16 16 . Haulers Intercepted 2 | . 2 . . Recyclers Shooed . | . . . . Parts Field Recycled . | . . . . Retrieved Matter . | . . . . Parts Self-Destructed 9 | . . 9 . Prevented . | . . . . Parts Restored . | . . . . Kills | -11 -10 -10 -8 ------- Run | Yrd Mat Sub Scr Combat Hostiles Destroyed 17 | . 9 8 . Melee 1 | . . 1 . Guns 11 | . 6 5 . Classes Destroyed 5 | . 4 1 . Hauler 2 | . 2 . . Recycler 1 | . 1 . . Swarmer 7 | . 3 4 . Grunt 6 | . 6 . . Subdweller 4 | . . 4 . Best Kill Streak 3 | . 3 2 . Combat Bots Only 3 | . 3 2 . Max Kills in Single Turn 2 | . 1 2 . Gunslinging 1 | . . 1 . Exploded . | . . . . Melee 1 | . . 1 . Uniques/NPCs Destroyed . | . . . . Combat | -11 -10 -10 -8 -------- Run | Yrd Mat Sub Scr Hostile Shots Fired 121 | . 41 80 . Missed 41 | . 16 25 . Hits 80 | . 25 55 . Projectile 80 | . 25 55 . Damage Taken 1179 | . 292 887 . Core 198 | . 89 109 . Absorbed by Shields . | . . . . Redirected to Shielding 7 | . 7 . . Core Remaining (%) 100 | 100 . . . Volleys Fired 53 | . 37 16 . Largest 2 | . 2 2 . Hottest 100 | . 100 70 . Shots Fired 106 | . 74 32 . Gun 106 | . 74 32 . Cannon . | . . . . Launcher . | . . . . Special . | . . . . Kinetic 21 | . . 21 . Thermal 85 | . 74 11 . Explosive . | . . . . Electromagnetic . | . . . . Robot Hit Streak 23 | . 23 6 . Robot Miss Streak 4 | . 2 4 . Penetration Max . | . . . . Secondary Targets 2 | . . 2 . Max Gunslinging Chain 1 | . . 1 . Shots Hit Robots 94 | . 54 40 . Core Hits 26 | . 19 7 . Critical Kills . | . . . . Critical Parts Destroyed 3 | . . 3 . Critical Strikes 13 | . 7 6 . Burn 8 | . 7 1 . Smash 5 | . . 5 . Melee Attacks 26 | . . 26 . Impact 26 | . . 26 . Slashing . | . . . . Piercing . | . . . . Sneak Attacks . | . . . . Combat Hostiles . | . . . . Follow-up Attacks . | . . . . Damage Inflicted 1302 | . 692 610 . Guns 853 | . 692 161 . Cannons . | . . . . Explosions . | . . . . Melee 449 | . . 449 . Ramming . | . . . . Kinetic 110 | . . 110 . Thermal 743 | . 692 51 . Explosive . | . . . . Electromagnetic . | . . . . Impact 449 | . . 449 . Slashing . | . . . . Piercing . | . . . . Highest Corruption . | . . . . Average Corruption . | . . . . Corruption Purged . | . . . . Corruption Blocked . | . . . . Overload Shots . | . . . . Overflow Damage 85 | . . 85 . Projectiles . | . . . . Explosions . | . . . . Melee 85 | . . 85 . Knockbacks 5 | . . 5 . Impact 5 | . . 5 . Kinetic . | . . . . Secondary . | . . . . Self-Inflicted Damage . | . . . . Shots . | . . . . Rammed . | . . . . Targets Rammed . | . . . . Kicked . | . . . . Crushed . | . . . . Highest Temperature 279 | . 279 . . Average Temperature 90 | . 90 . . Received Heat Transfer 294 | . 144 150 . Siege Activations . | . . . . Martial Activations . | . . . . Shielding Activations . | . . . . Robots Disrupted . | . . . . Combat Hostiles . | . . . . Robots Corrupted 2 | . . 2 . Combat Hostiles 2 | . . 2 . Parts Fried 2 | . . 2 . Impact Corruptions 4 | . . 4 . Robots Melted 3 | . 3 . . Combat Hostiles 3 | . 3 . . Parts Melted 8 | . 8 . . Heat Transferred 2738 | . 2516 222 . Parts Sabotaged . | . . . . Parts Stolen . | . . . . Parts Stripped . | . . . . Power Chain Reactions . | . . . . Alert | -11 -10 -10 -8 ------- Run | Yrd Mat Sub Scr Maximum Alert Level . | . . . . Low Security (%) 100 | 100 100 . . Level 1 . | . . . . Level 2 . | . . . . Level 3 . | . . . . Level 4 . | . . . . Level 5 . | . . . . High Security . | . . . . Max Security . | . . . . Peak Influence 95 | . 95 . . Initial . | . . . . Average 24 | . 26 . . Influence Increases 450 | . 280 170 . Destroy 0b10 Robot/C 260 | . 180 80 . Destroy 0b10 Robot/NC 15 | . 15 . . Destroy Leader 44 | . 44 . . Successful Hack 10 | . 10 . . Destroy Structure 1 | . 1 . . Lose Combat Pursuer 120 | . 30 90 . Influence Decreases 450 | . 233 145 72 Entered New Map 95 | . . 23 72 Time Decay 339 | . 233 106 . Lost Part 16 | . . 16 . Squads Dispatched 1 | . 1 . . Investigation . | . . . . Extermination . | . . . . Reinforcement 1 | . 1 . . Assault . | . . . . Garrison . | . . . . Intercept . | . . . . Searches Triggered . | . . . . Construction Impeded . | . . . . Haulers Reinforced . | . . . . Active Scanning Responses . | . . . . Cargo Convoy Interrupts . | . . . . Stealth | -11 -10 -10 -8 --------- Run | Yrd Mat Sub Scr Distress Signals 2 | . 2 . . Communications Jammed . | . . . . Distress Signals . | . . . . Times Spotted 29 | . 20 9 . Peak Tracking Total 4 | . 4 4 . Tactical Retreats 6 | . 3 3 . Traps | -11 -10 -10 -8 ------- Run | Yrd Mat Sub Scr Traps Triggered . | . . . . Indirectly . | . . . . Trap Hack Attempts . | . . . . Triggered . | . . . . Disarmed . | . . . . Reprogrammed . | . . . . Reused . | . . . . Traps Extracted . | . . . . Installed . | . . . . Triggered . | . . . . Machines | -11 -10 -10 -8 ---------- Run | Yrd Mat Sub Scr Machines Disabled . | . . . . Max in Single Turn . | . . . . Machines Repaired . | . . . . Machines Dismantled . | . . . . Machines Sabotaged . | . . . . Overloaded Fab Kills . | . . . . Hacking | -11 -10 -10 -8 --------- Run | Yrd Mat Sub Scr Machines Accessed 3 | . 3 . . Terminals 3 | . 3 . . Fabricators . | . . . . Repair Stations . | . . . . Recycling Units . | . . . . Scanalyzers . | . . . . Garrison Access . | . . . . Total Hacks 7 | . 7 . . Successful 3 | . 3 . . Failed 4 | . 4 . . Catastrophic . | . . . . Database Lockouts . | . . . . Manual 7 | . 7 . . Terminals 7 | . 7 . . Fabricators . | . . . . Repair Stations . | . . . . Recycling Units . | . . . . Scanalyzers . | . . . . Garrison Access . | . . . . Terminal Hacks 2 | . 2 . . Robot Analysis 2 | . 2 . . Fabricator Hacks . | . . . . Repair Station Hacks . | . . . . Recycling Unit Hacks . | . . . . Scanalyzer . | . . . . Garrison Access Hacks . | . . . . Unauthorized Hacks 1 | . 1 . . Terminals 1 | . 1 . . Botnet 1 | . 1 . . Fabricators . | . . . . Repair Stations . | . . . . Recycling Units . | . . . . Scanalyzers . | . . . . Garrison Access . | . . . . Data Cores Recovered . | . . . . Used . | . . . . Hacking Detections 2 | . 2 . . Full Trace Events . | . . . . Feedback Events . | . . . . Feedback Blocked . | . . . . Robot Schematics Acquired . | . . . . Robots Built . | . . . . Authchips . | . . . . Time . | . . . . Total Robot Build Rating . | . . . . Part Schematics Acquired . | . . . . Parts Built . | . . . . Authchips . | . . . . Time . | . . . . Total Part Build Rating . | . . . . Part Studies Acquired . | . . . . Parts Repaired . | . . . . Time . | . . . . Parts Recycled . | . . . . Recycled Matter . | . . . . Retrieved Matter . | . . . . Retrieved Components . | . . . . Parts Scanalyzed . | . . . . Part Schematics Acquired . | . . . . Parts Damaged . | . . . . Bothacking | -11 -10 -10 -8 ------------ Run | Yrd Mat Sub Scr Used RIF Installer . | . . . . Robots Hacked . | . . . . Non-combat . | . . . . Combat . | . . . . Robot Hacks Applied . | . . . . Relay Couplers Released . | . . . . Fabnet Peak Effective % . | . . . . Robots Rewired . | . . . . Allies Hacked . | . . . . Hacks Repelled . | . . . . Allies | -11 -10 -10 -8 -------- Run | Yrd Mat Sub Scr Total Allies . | . . . . Largest Group . | . . . . Highest-Rated Group . | . . . . Highest-Rated Ally . | . . . . Total Orders . | . . . . Ally Attacks . | . . . . Total Damage . | . . . . Kills . | . . . . Allies Corrupted . | . . . . Allies Melted . | . . . . Intel | -11 -10 -10 -8 ------- Run | Yrd Mat Sub Scr Active Infowar (turns) 626 | . 250 376 . Structural 626 | . 250 376 . Robot Analysis Total 2 | . 2 . . Derelict Logs Recovered 3 | . . . 3 Drone Launches . | . . . . Drone Recoveries . | . . . . Exploration | -11 -10 -10 -8 ------------- Run | Yrd Mat Sub Scr Turns Passed 2707 | 74 1082 826 725 Spaces Moved 1020 | 43 394 281 302 Core 4 | 4 . . . Treads 1016 | 39 394 281 302 Legs . | . . . . Wheels . | . . . . Hover . | . . . . Flight . | . . . . Fastest Speed 50 | 50 160 240 240 Average Speed 229 | 149 223 240 240 Slowest Speed 240 | 160 240 240 240 Overloaded Moves . | . . . . Propulsion Burnouts . | . . . . Robots Hopped . | . . . . Potential Cave-ins . | . . . . Cave-ins Triggered . | . . . . Exploration Rate (%) 30 | 3 66 13 41 Regions Visited 3 Branch Regions 2 Pre-discovered Areas 1 | . . . 1 Known Exits Taken . | . . . . Unknown Exits Taken 3 | 1 1 1 . Scrap Searched . | . . . . Spaces Dug . | . . . . Terrain Destroyed . | . . . . Melee . | . . . . Projectile . | . . . . AOE . | . . . . Terrain Rammed . | . . . . Walls Destroyed . | . . . . Machines Disabled . | . . . . Actions | -11 -10 -10 -8 --------- Run | Yrd Mat Sub Scr Total 1228 | 50 522 354 302 Wait 89 | . 71 18 . Move 1017 | 42 393 280 302 Hop . | . . . . Pick Up 22 | 2 16 4 . Fast Attach 9 | 6 3 . . Attach 6 | . . 6 . Detach . | . . . . Swap 4 | . . 4 . Drop 2 | . 2 . . Fire 53 | . 37 16 . Melee 26 | . . 26 . Ram . | . . . . Kick . | . . . . Crush . | . . . . Escape Stasis . | . . . . Rewire . | . . . . Trap . | . . . . Miscellaneous . | . . . . Route ------- -11/Scrapyard -10/Materials (discovered 5 exits: [*Mat x2] / [*Min x2] / [*Sub]) -10/Subcaves -8/Scraptown History --------- Turn | Location | Event 13 | -11/Scrapyard | Discovered new exit (range 15) 75 | -11/Scrapyard | Entered Materials 313 | -10/Materials | Build established: Mutant 656 | -10/Materials | Discovered new exit (range 14) 659 | -10/Materials | Discovered new exit (range 8) 942 | -10/Materials | Discovered new exit (range 3) 975 | -10/Materials | Derelicts attacked the area 1054 | -10/Materials | Discovered new exit (range 10) 1108 | -10/Materials | Discovered new exit (range 9) 1157 | -10/Materials | Entered Subcaves 1158 | -10/Subcaves | Approached by a straggling Scientist 1252 | -10/Subcaves | Lost 3 parts (1p1n1w) 1261 | -10/Subcaves | Shifting Twisted Machinery released Sub. Beam Cannon 1298 | -10/Subcaves | Shifting Twisted Machinery released Riot Gun 1309 | -10/Subcaves | Shifting Twisted Machinery released Flamer 1460 | -10/Subcaves | Shifting Twisted Machinery released Sub. Laser 1634 | -10/Subcaves | Core integrity fell below 50% 1983 | -10/Subcaves | Entered Scraptown 2161 | -8/Scraptown | Scanned Subdweller tech in exchange for log data 2166 | -8/Scraptown | Learned 12 Factory zone layouts 2168 | -8/Scraptown | Learned Research emergency access door positions 2171 | -8/Scraptown | Learned location of Zion (-7) 2288 | -8/Scraptown | Visited UFD Registry 2288 | -8/Scraptown | Registered with UFD as "Gaussnade" 2348 | -8/Scraptown | Visited A0-MCA Data Center 2413 | -8/Scraptown | Visited Junk Cannon Lab 2490 | -8/Scraptown | Visited Supply Room 2521 | -8/Scraptown | Visited Analyses Database 2562 | -8/Scraptown | Visited Junk Repository 2600 | -8/Scraptown | Visited Curators Association 2639 | -8/Scraptown | Visited Cartography Club 2708 | -8/Scraptown | Self-destructed Last Messages --------------- 02414_ 7E-2OM(c) adjusts several controls. 02442_ LOCAL NARROWCAST: Closed for remodeling. 02490_ LOCAL NARROWCAST: Supplies. 02521_ LOCAL NARROWCAST: DB 12. 02562_ LOCAL NARROWCAST: Repository. 02579_ XB-XIC(c): "Come one, come all! See for yourself a fine selection of the many wondrous pieces in our collection!" 02600_ LOCAL NARROWCAST: Curators Association. Welcome to the latest exhibit, look but don't touch. 02632_ LP-AKE(p) scrutinizes some mainframe outputs. 02639_ LOCAL NARROWCAST: Cartography Club. We map, therefore we are. 02657_ XB-XIC(c): "Come one, come all! See for yourself a fine selection of the many wondrous pieces in our collection!" 02665_ LP-AKE(p) scrutinizes some mainframe outputs. Map ----- +----------------------------------------------------+ | # ???????????###### #######?#]" "]## # | | # ???????????# #??"" ""??? | | # ????????????# #???? ??????? | | # ?????????????######## #####?????# #?????????# | | ## ##########???????##### ########### ########### | | #???????#"""" """"""""""" """"""""""" | | #???????#" | | #???????#" | | #???????#" | | #???????#" | | ### #????####" | | ??# #????"""" """"""""""""""""""""""" | | ?# #????"""" """"""""""""""""""""""" | | # #????""""p ""###### ############# | | #????"""" ""#??? ??????????? | | # #????"""" ""#???? ??????????? | | # ###??"""" ""#? "" "" ?????????? | | ?# ""#"#"""" ""# "" ???????????? | | ?# """"#"""" ""# " ???????###### | | ??# ""#######" "" "??????? | | ??# ###?????#" "" "???????? | | ??# #########" ""# " ????????##### | | ??# ""# ""? ????????????? | | ??# ""#? "" "???????????? | | ??# ""#???? ???????????? | | ??# @ ""#???? ???????????? | | ??# ""###### ############# | | """"""""""""""""""""""" | | """"""""""""""""""""""" | | | | | | | | #""""#" | | #????#" | | ? #????#"""""" """"""""""" """""""""" | | ???## ### ####????####### ########### ########## | | ????????# ????????????? ??????? ??????? | | ????????# ???????????#""" ""????# ??? | | ?????????? ???????????#""" """"#?# ""# | | ???????????????????????#"!" """#?# """"#""" | | ???????????????????????#""" """#?# " ""#" | | ???????????????????????#""" """#?# """"#"" | | ?????????????????????????"""""""???# ""#"" | | ??????????????????????????""""""???# "??"" | | ??????????????????????????""""""???## " ???"" | | ??????????????????????????"""???????"""""""???"""" | | ????????????????????????????????????######?????""" | | ?????????????????????????????????????????????????# | | ?????????????????????????????????????????????????? | | ?????????????????????????????????????????????????? | +----------------------------------------------------+ Best States ------------- Heat Dissipation 25 Energy Generation 10 Energy Capacity 250 Matter Stores 300 Matter Capacity 300 Sight Range 16 Terrain Scan Density 10 Weapon Shielding 33 Evasion (%) 40 Recoil Reduction 2 Item Schematics ----------------- None Robot Schematics ------------------ None Fabricated ------------ Nothing Repaired ---------- Nothing Studied --------- None Alien Tech Used ----------------- None Achievements -------------- None Challenges ------------ None Game ------ Seed VampiricXenonDistortion Manual? 0 Play Time 00:09:32 Cumulative 176.8 hours Start 2026.08.05 @ 23:56:50 End 2026.08.06 @ 00:05:24 Sessions 1 Manual Loads 0 Difficulty Rogue Special Mode None Game No. 191 Rogue 137 Adventurer 54 Explorer 0 Win Type - Total 8 Types 4/0/1/1/0/0/0/1/0/1 Lore% 66 Gallery% 58 Achievement% 55 Wizard Run 0 Options --------- Layout 1 ASCII 0 Keyboard 0 Movement Mouse Keybinds 1 Fullscreen 2 Font 32/Tamsyn Map View 50x35 Zoom Use 0% Tactical HUD 1 Map Filters NONE Filters NONE Steam 1 RUN: e0fd282f-99ba-45f5-bf8a-c91df6e9622e